bitfinex/quotes_SOLUSD_20250626
["timestamp","ask_amount","ask_price","bid_price","bid_amount"]
[1750908490813,177.97541657,146.43,146.38,12.30648674]
[1750908491410,172.5,146.43,146.38,12.30648674]
[1750908491713,5.47541657,146.42,146.38,6.83107017]
[1750908491913,5.47541657,146.42,146.38,12.30648674]
[1750908492408,172.5,146.43,146.38,6.83107017]
[1750908492617,5.47541657,146.42,146.38,12.30648674]
[1750908495594,177.97541657,146.43,146.38,12.30648674]
[1750908497006,177.97541657,146.43,146.38,6.83107017]
[1750908497203,177.97541657,146.43,146.38,12.30648674]
[1750908497609,31.47541657,146.43,146.38,12.30648674]
[1750908497794,5.47541657,146.41,146.38,6.83107017]
[1750908498304,5.47541657,146.42,146.38,6.83107017]
[1750908498513,5.47541657,146.41,146.38,6.83107017]
[1750908500398,5.47541657,146.42,146.38,6.83107017]
[1750908501211,5.47541657,146.42,146.38,12.30648674]
[1750908501617,5.47541657,146.42,146.38,6.83107017]
[1750908501795,5.47541657,146.42,146.38,12.30648674]
[1750908502505,5.47541657,146.42,146.38,6.83107017]
[1750908502707,5.47541657,146.42,146.38,12.30648674]
[1750908504127,5.09324352,146.43,146.41,5.47541657]
[1750908504328,0.04,146.49,146.42,7.07261657]
[1750908504525,10.56792147,146.48,146.42,1.5972]
[1750908504709,5.47541657,146.46,146.42,7.07261657]
[1750908505701,5.47541657,146.46,146.42,13.90192476]
[1750908507404,10.56806884,146.47,146.43,5.47541657]
[1750908507604,5.09265227,146.47,146.43,5.47541657]
[1750908507823,36.56806884,146.48,146.43,5.47541657]
[1750908508324,5.51541657,146.49,146.44,5.47541657]
[1750908508531,5.51541657,146.49,146.45,5.47541657]
[1750908508730,10.60534228,146.49,146.45,5.47541657]
[1750908508934,5.12992571,146.49,146.45,5.47541657]
[1750908509519,5.12992571,146.49,146.45,12.30339157]
[1750908509735,0.04,146.49,146.45,12.30339157]
[1750908510509,0.04,146.49,146.46,5.47541657]
[1750908510937,0.04,146.49,146.48,5.47541657]
[1750908511136,0.04,146.49,146.47,5.47541657]
[1750908511715,0.04,146.49,146.47,12.30265818]
[1750908512316,0.04,146.49,146.47,6.82724161]
[1750908512513,0.04,146.49,146.47,12.30265818]
[1750908512719,0.04,146.49,146.47,6.82724161]
[1750908513057,0.04,146.49,146.47,12.30265818]
[1750908513652,0.04,146.49,146.47,5.47541657]
[1750908513839,0.04,146.49,146.45,12.30364901]
[1750908514153,5.51541657,146.49,146.45,6.82823244]
[1750908514515,0.04,146.49,146.44,12.30408159]
[1750908514712,5.51541657,146.49,146.44,12.30408159]
[1750908515016,5.47541657,146.47,146.42,13.90219518]
[1750908515216,5.47541657,146.46,146.42,8.42677861]
[1750908516860,0.04,146.49,146.39,18.64964886]
[1750908516861,5.47541657,146.44,146.39,18.64964886]
[1750908517146,5.47541657,146.48,146.39,6.83106769]
[1750908517147,5.47541657,146.43,146.39,6.83106769]
[1750908517319,5.47541657,146.43,146.39,12.30648426]
[1750908517516,0.28432314,146.46,146.38,8.35532342]
[1750908517517,5.47541657,146.42,146.38,8.35532342]
[1750908517720,5.47541657,146.42,146.38,13.83073999]
[1750908518041,5.47541657,146.43,146.38,13.83073999]
[1750908519127,5.47541657,146.44,146.39,5.47541657]
[1750908519844,5.47541657,146.48,146.43,5.47541657]
[1750908520449,5.47541657,146.48,146.41,29.26]
[1750908520741,5.47541657,146.48,146.43,12.30426488]
[1750908521246,5.47541657,146.47,146.43,6.82884831]
[1750908521755,5.47541657,146.47,146.42,12.30508464]
[1750908521954,26.0,146.48,146.42,12.30508464]
[1750908522125,31.47541657,146.48,146.43,5.47541657]
[1750908522325,5.47541657,146.47,146.42,12.30508464]
[1750908523060,26.0,146.48,146.42,12.30508464]
[1750908523256,5.47541657,146.47,146.42,12.30508464]
[1750908525129,5.47541657,146.47,146.43,12.30428408]
[1750908526154,5.47541657,146.47,146.43,5.47541657]
[1750908527147,26.0,146.48,146.43,12.30425654]
[1750908527348,31.47541657,146.48,146.43,12.30425654]
[1750908529855,0.04,146.49,146.46,5.47541657]
[1750908531665,0.04,146.49,146.46,12.30281672]
[1750908533340,5.47541657,146.47,146.4,17.07578057]
[1750908533636,5.47541657,146.47,146.42,5.47541657]
[1750908534156,5.47541657,146.47,146.43,5.47541657]
[1750908534462,31.47541657,146.48,146.44,5.47541657]
[1750908535337,31.47541657,146.48,146.43,5.47541657]
[1750908536263,31.47541657,146.48,146.44,6.82873531]
[1750908538252,5.47541657,146.48,146.44,12.30415188]
[1750908538560,5.51541657,146.49,146.44,12.30415188]
[1750908540847,5.51541657,146.49,146.45,5.47541657]
[1750908541056,5.51541657,146.49,146.44,6.82873531]
[1750908541255,5.51541657,146.49,146.44,12.30415188]
[1750908541458,5.47541657,146.48,146.44,12.30415188]
[1750908541662,5.47541657,146.48,146.44,6.82873531]
[1750908541846,5.47541657,146.48,146.44,12.30415188]
[1750908542046,0.04,146.49,146.44,12.30415188]
[1750908542451,5.47541657,146.48,146.44,12.30415188]
[1750908543345,5.51541657,146.49,146.44,12.30415188]
[1750908544945,0.04,146.49,146.45,5.47541657]
[1750908545146,5.51541657,146.49,146.45,5.47541657]
[1750908545955,5.51541657,146.49,146.45,12.30347407]
[1750908546152,5.51541657,146.49,146.45,6.8280575]
[1750908546371,0.04,146.49,146.45,6.8280575]
[1750908546572,5.51541657,146.49,146.45,6.8280575]
[1750908546953,10.61000942,146.49,146.44,12.30401838]
[1750908547354,5.51541657,146.49,146.44,12.30401838]
[1750908548995,5.51541657,146.49,146.4,13.63036914]
[1750908548996,5.47541657,146.45,146.4,13.63036914]
[1750908549284,5.47541657,146.43,146.4,13.63036914]
[1750908549865,32.0807,146.47,146.4,13.63036914]
[1750908550064,5.47541657,146.43,146.37,91.7796608]
[1750908550380,5.47541657,146.42,146.38,6.83146542]
[1750908550578,5.47541657,146.42,146.37,13.74770074]
[1750908550753,5.47541657,146.4,146.37,8.27228417]
[1750908551558,5.47541657,146.4,146.37,1.4403608]
[1750908552551,5.47541657,146.39,146.37,1.4403608]
[1750908552872,5.47541657,146.38,146.37,1.4403608]
[1750908554978,31.09816842,146.41,146.37,1.4403608]
[1750908555182,5.47541657,146.4,146.37,8.27229199]
[1750908556057,5.47541657,146.4,146.37,1.4403608]
[1750908556258,5.47541657,146.39,146.37,8.27233736]
[1750908556674,5.47541657,146.4,146.37,8.27233736]
[1750908561865,31.47541657,146.41,146.37,13.74775393]
[1750908562070,11.78231657,146.42,146.37,13.74775393]
[1750908562877,5.47541657,146.41,146.37,13.74775393]
[1750908563065,5.47541657,146.41,146.37,8.27233736]
[1750908563264,5.47541657,146.41,146.37,13.74775393]
[1750908564376,11.78231657,146.42,146.37,13.74775393]
[1750908566792,5.47541657,146.41,146.37,8.27233736]
[1750908568099,5.47541657,146.41,146.37,13.74775393]
[1750908569675,5.47541657,146.42,146.38,5.47541657]
[1750908569874,5.47541657,146.42,146.37,8.27233736]
[1750908570174,5.47541657,146.42,146.38,5.47541657]
[1750908571576,26.0,146.43,146.39,6.83106769]
[1750908571797,31.47541657,146.43,146.39,6.83106769]
[1750908572004,26.0,146.43,146.39,6.83106769]
[1750908572177,31.47541657,146.43,146.39,6.83106769]
[1750908576111,31.47541657,146.43,146.38,6.83153436]
[1750908576285,31.47541657,146.43,146.38,12.30695093]
[1750908576712,5.47541657,146.42,146.38,12.30695093]
[1750908577300,5.47541657,146.4,146.37,8.27227446]
[1750908579610,5.47541657,146.39,146.37,1.4403608]
[1750908586004,5.47541657,146.38,146.37,1.4403608]
[1750908586218,26.0,146.4,146.37,1.4403608]
[1750908586219,26.0,146.39,146.37,1.4403608]
[1750908586411,5.47541657,146.38,146.37,1.4403608]
[1750908586995,31.08883113,146.39,146.37,1.4403608]
[1750908587208,5.47541657,146.38,146.37,1.4403608]
[1750908587707,6.5412,146.4,146.37,1.4403608]
[1750908588012,5.47541657,146.38,146.37,1.4403608]
[1750908592294,5.09417544,146.39,146.37,1.4403608]
[1750908592604,5.47541657,146.38,146.37,1.4403608]
[1750908594798,10.57797361,146.39,146.37,1.4403608]
[1750908595152,5.47541657,146.39,146.37,1.4403608]
[1750908596117,5.47541657,146.39,146.37,8.27236189]
[1750908597819,31.47541657,146.4,146.37,8.27236189]
[1750908599121,5.47541657,146.38,146.37,1.4403608]
[1750908600203,5.47541657,146.39,146.37,1.4403608]
[1750908600520,9.93763516,146.43,146.37,13.74775624]
[1750908600824,170.05680162,146.48,146.41,5.47541657]
[1750908600825,10.57685099,146.45,146.41,5.47541657]
[1750908601028,5.47541657,146.46,146.42,5.47541657]
[1750908601328,5.47541657,146.46,146.43,6.82920166]
[1750908601934,5.47541657,146.46,146.42,6.82961068]
[1750908602231,5.47541657,146.46,146.42,12.30502725]
[1750908603531,10.57291541,146.46,146.42,12.30502725]
[1750908603824,10.57291541,146.47,146.43,5.47541657]
[1750908604132,0.04,146.49,146.45,5.47541657]
[1750908604343,0.04,146.49,146.46,5.47541657]
[1750908604628,0.04,146.49,146.47,5.47541657]
[1750908605206,0.04,146.49,146.48,5.47541657]
[1750908605828,0.04,146.49,146.48,6.82687056]
[1750908606014,0.04,146.49,146.46,29.16]
[1750908606218,5.51541657,146.49,146.46,29.16]
[1750908606423,0.04,146.49,146.46,35.98776087]
[1750908607100,0.04,146.49,146.46,41.46317744]
[1750908610733,0.04,146.49,146.47,5.47541657]
[1750908611230,0.04,146.49,146.48,5.47541657]
[1750908612120,0.04,146.49,146.47,5.47541657]
[1750908612854,0.04,146.49,146.48,6.82687056]
[1750908616235,0.04,146.49,146.47,12.30275322]
[1750908616743,0.04,146.49,146.47,6.82733665]
[1750908617039,0.04,146.49,146.47,12.30275322]
[1750908617744,0.04,146.49,146.47,6.82733665]
[1750908617934,0.04,146.49,146.47,12.30275322]
[1750908621949,0.04,146.49,146.48,5.47541657]
[1750908623349,0.04,146.49,146.48,31.3784207]
[1750908624118,0.04,146.49,146.48,25.90300413]
[1750908624442,0.04,146.49,146.48,31.3784207]
[1750908629889,0.04,146.49,146.48,36.85383727]
[1750908630024,0.04,146.54,146.53,5.47541657]
[1750908630360,0.04,146.54,146.53,34.59541657]
[1750908630730,0.04,146.54,146.53,29.12]
[1750908630941,0.04,146.54,146.53,34.59541657]
[1750908631450,0.04,146.54,146.53,142.37155014]
[1750908631853,0.04,146.54,146.53,149.19609118]
[1750908633754,0.04,146.55,146.53,149.19609118]
[1750908634056,0.04,146.58,146.57,45.07613357]
[1750908634250,0.04,146.58,146.57,162.87613357]
[1750908634451,0.04,146.58,146.57,29.1]
[1750908636256,0.04,146.58,146.57,35.92267858]
[1750908636859,0.04,146.58,146.57,29.1]
[1750908637361,0.04,146.58,146.57,35.92267858]
[1750908637562,0.04,146.58,146.51,17.06309211]
[1750908637563,5.51541657,146.58,146.51,17.06309211]
[1750908637752,5.51541657,146.58,146.53,41.29541657]
[1750908637954,5.47541657,146.57,146.53,42.64454104]
[1750908638548,5.47541657,146.56,146.53,42.64454104]
[1750908638764,0.04,146.58,146.53,42.64454104]
[1750908638947,5.47541657,146.57,146.53,42.64454104]
[1750908639150,5.47541657,146.56,146.53,35.82]
[1750908639339,5.47541657,146.55,146.53,35.82]
[1750908639667,5.47541657,146.54,146.51,29.1]
[1750908639863,5.47541657,146.53,146.51,29.1]
[1750908641264,5.47541657,146.53,146.5,6.82584649]
[1750908641462,5.47541657,146.52,146.49,6.82634009]
[1750908641674,5.47541657,146.51,146.49,29.1]
[1750908642585,5.47541657,146.5,146.44,12.30415188]
[1750908642883,5.47541657,146.48,146.44,6.82873531]
[1750908643078,5.47541657,146.48,146.45,29.1]
[1750908643446,5.47541657,146.47,146.45,29.1]
[1750908643654,5.47541657,146.47,146.44,35.92873531]
[1750908643988,26.0,146.5,146.44,35.92873531]
[1750908644146,5.47541657,146.47,146.44,35.92873531]
[1750908646264,5.47541657,146.47,146.44,6.82873531]
[1750908646476,5.47541657,146.47,146.44,35.92873531]
[1750908647701,5.47541657,146.47,146.44,6.82873531]
[1750908649254,5.47541657,146.46,146.43,42.6691792]
[1750908649574,5.47541657,146.45,146.43,6.74]
[1750908650076,5.47541657,146.45,146.43,0.02]
[1750908650276,5.47541657,146.44,146.43,0.02]
[1750908650753,32.4718,146.47,146.43,6.84903776]
[1750908650953,6.4718,146.47,146.43,6.84903776]
[1750908651285,6.4718,146.47,146.43,12.32445433]
[1750908651584,6.4718,146.47,146.43,6.84903776]
[1750908651868,6.4718,146.47,146.43,12.32445433]
[1750908652257,6.4718,146.47,146.43,6.84903776]
[1750908652468,6.4718,146.47,146.43,12.32445433]
[1750908653675,11.94721657,146.47,146.43,12.32445433]
[1750908654180,6.4718,146.47,146.43,12.32445433]
[1750908654374,6.4718,146.47,146.44,5.47541657]
[1750908654679,6.98981657,146.48,146.44,5.47541657]
[1750908655057,6.98981657,146.48,146.43,12.32445433]
[1750908655248,5.47541657,146.47,146.43,12.32445433]
[1750908655670,5.47541657,146.47,146.43,6.84903776]
[1750908655870,5.47541657,146.45,146.43,0.02]
[1750908656787,5.47541657,146.44,146.43,0.02]
[1750908657486,5.47541657,146.45,146.43,0.02]
[1750908657686,1.5144,146.48,146.43,0.02]
[1750908657687,5.47541657,146.44,146.43,0.02]
[1750908657890,11.70941657,146.44,146.43,0.02]
[1750908659385,6.234,146.44,146.43,0.02]
[1750908659684,5.47541657,146.44,146.43,0.02]
[1750908660488,26.0,146.45,146.43,0.02]
[1750908660689,5.47541657,146.44,146.43,0.02]
[1750908661562,26.0,146.46,146.43,0.02]
[1750908661765,31.47541657,146.46,146.43,0.02]
[1750908661983,33.9745,146.48,146.43,0.02]
[1750908662288,5.47541657,146.46,146.43,0.02]
[1750908664373,5.47541657,146.46,146.43,6.84920166]
[1750908664700,5.47541657,146.46,146.43,0.02]
[1750908664868,5.47541657,146.44,146.43,0.02]
[1750908665979,26.0,146.46,146.43,0.02]
[1750908666172,5.47541657,146.44,146.43,0.02]
[1750908669890,31.75973971,146.44,146.43,0.02]
[1750908670095,26.0,146.39,146.38,0.02]
[1750908670397,31.47541657,146.39,146.38,0.02]
[1750908674201,31.75973971,146.39,146.38,0.02]
[1750908674630,38.5908074,146.39,146.38,0.02]
[1750908674810,57.38261783,146.39,146.38,0.02]
[1750908675121,0.28432314,146.38,146.37,1.4403608]
[1750908675429,24.55155014,146.38,146.37,1.4403608]
[1750908675630,27.09133357,146.37,146.32,0.02]
[1750908675822,5.47541657,146.33,146.32,0.02]
[1750908676309,5.75973971,146.33,146.32,0.02]
[1750908676509,30.02696671,146.33,146.32,0.02]
[1750908679224,5.47541657,146.33,146.32,0.02]
[1750908679924,30.02696671,146.33,146.32,0.02]
[1750908680504,26.0,146.3,146.25,6.83751331]
[1750908680826,5.47541657,146.27,146.25,6.83751331]
[1750908681001,26.0,146.3,146.25,6.83751331]
[1750908681206,26.28432314,146.33,146.25,6.83751331]
[1750908681508,5.47541657,146.3,146.25,12.31292988]
[1750908682114,5.47541657,146.29,146.25,12.31292988]
[1750908682448,5.47541657,146.3,146.25,12.31292988]
[1750908683236,5.47541657,146.3,146.25,6.83751331]
[1750908683830,5.47541657,146.3,146.26,5.47541657]
[1750908684009,5.47541657,146.3,146.25,6.83751331]
[1750908684418,5.47541657,146.3,146.26,5.47541657]
[1750908685038,5.47541657,146.31,146.27,6.8366719]
[1750908685439,5.47541657,146.31,146.27,12.31208847]
[1750908685922,5.47541657,146.3,146.27,6.8366719]
[1750908686435,26.0,146.33,146.27,6.8366719]
[1750908686436,5.47541657,146.29,146.27,6.8366719]
[1750908686933,5.47541657,146.32,146.23,6.98070359]
[1750908687135,5.47541657,146.27,146.23,12.31395859]
[1750908687311,5.47541657,146.27,146.23,6.83854202]
[1750908687513,5.47541657,146.26,146.23,6.83854202]
[1750908688112,5.47541657,146.27,146.23,6.83854202]
[1750908690636,5.47541657,146.26,146.23,6.83854202]
[1750908691022,5.47541657,146.26,146.22,6.83900971]
[1750908691220,5.47541657,146.26,146.22,12.31442628]
[1750908691433,5.47541657,146.26,146.22,6.83900971]
[1750908692030,5.47541657,146.25,146.22,6.83900971]
[1750908693139,26.0,146.28,146.22,6.83900971]
[1750908693548,5.47541657,146.27,146.22,12.31442628]
[1750908693749,26.0,146.28,146.22,12.31442628]
[1750908693936,8.0921,146.31,146.23,5.47541657]
[1750908693937,26.0,146.3,146.23,5.47541657]
[1750908694134,5.47541657,146.27,146.22,23.93653398]
[1750908694646,5.47541657,146.27,146.22,29.41195055]
[1750908695340,5.47541657,146.26,146.22,12.31442628]
[1750908695543,26.0,146.28,146.22,6.83900971]
[1750908695743,5.47541657,146.25,146.22,6.83900971]
[1750908696241,5.47541657,146.23,146.21,0.02]
[1750908696841,5.47541657,146.22,146.21,0.02]
[1750908700829,5.47541657,146.23,146.21,0.02]
[1750908701149,33.5792,146.24,146.21,0.02]
[1750908701448,5.47541657,146.22,146.21,0.02]
[1750908702741,0.28432314,146.27,146.21,0.02]
[1750908702933,5.47541657,146.26,146.21,5.49541657]
[1750908703548,5.47541657,146.24,146.21,0.02]
[1750908703728,5.47541657,146.23,146.21,0.02]
[1750908703925,5.47541657,146.24,146.21,0.02]
[1750908704154,5.47541657,146.27,146.23,5.47541657]
[1750908704322,5.47541657,146.28,146.22,0.14216157]
[1750908704519,5.47541657,146.28,146.23,5.47541657]
[1750908704745,5.47541657,146.28,146.22,6.98117128]
[1750908704919,5.47541657,146.28,146.23,5.47541657]
[1750908705125,5.47541657,146.29,146.24,5.47541657]
[1750908705324,31.47541657,146.29,146.24,5.47541657]
[1750908706044,5.47541657,146.28,146.22,24.07869555]
[1750908706243,5.47541657,146.28,146.24,5.47541657]
[1750908706742,5.47541657,146.28,146.25,6.83760683]
[1750908708635,5.47541657,146.27,146.25,6.83760683]
[1750908708837,5.47541657,146.27,146.24,6.83797298]
[1750908709037,5.47541657,146.26,146.24,6.83797298]
[1750908709433,5.47541657,146.26,146.22,6.83900971]
[1750908710236,5.47541657,146.26,146.22,12.31442628]
[1750908711357,26.0,146.29,146.22,12.31442628]
[1750908711564,5.47541657,146.28,146.23,5.47541657]
[1750908711956,31.47541657,146.29,146.24,5.47541657]
[1750908712157,5.47541657,146.29,146.24,5.47541657]
[1750908713342,5.47541657,146.29,146.25,6.83760683]
[1750908713937,26.0,146.31,146.25,12.3130234]
[1750908714142,5.47541657,146.3,146.25,12.3130234]
[1750908714447,5.47541657,146.29,146.25,12.3130234]
[1750908714646,5.47541657,146.28,146.25,6.83760683]
[1750908715643,5.47541657,146.28,146.24,17.09487257]
[1750908715839,5.47541657,146.28,146.23,5.47541657]
[1750908716242,5.47541657,146.27,146.23,5.47541657]
[1750908716642,5.47541657,146.28,146.23,5.47541657]
[1750908716842,5.47541657,146.28,146.24,5.47541657]
[1750908717046,5.47541657,146.29,146.24,5.47541657]
[1750908717644,5.34287971,146.29,146.25,6.83760683]
[1750908719371,5.47541657,146.31,146.26,5.47541657]
[1750908719750,5.47541657,146.31,146.27,6.8366719]
[1750908720558,12.72386328,146.32,146.27,6.8366719]
[1750908720760,5.47541657,146.31,146.27,6.8366719]
[1750908721475,5.47541657,146.31,146.27,12.31208847]
[1750908721852,5.47541657,146.31,146.27,6.8366719]
[1750908722053,12.72386328,146.32,146.27,6.8366719]
[1750908722249,5.47541657,146.35,146.31,5.47541657]
[1750908722450,5.47541657,146.35,146.3,5.47541657]
[1750908722655,5.47541657,146.34,146.29,5.47541657]
[1750908722873,31.47541657,146.3,146.22,6.83900971]
[1750908723085,5.47541657,146.29,146.24,5.47541657]
[1750908723280,26.0,146.3,146.25,12.45518497]
[1750908723281,5.47541657,146.3,146.25,12.45518497]
[1750908723567,5.47541657,146.31,146.26,5.47541657]
[1750908723747,26.0,146.32,146.26,5.47541657]
[1750908723949,31.47541657,146.32,146.27,5.47541657]
[1750908724176,26.0,146.32,146.27,5.47541657]
[1750908724473,26.0,146.32,146.27,34.53541657]
[1750908724652,5.47541657,146.32,146.27,34.53541657]
[1750908724852,5.09995991,146.35,146.27,34.53541657]
[1750908724853,5.47541657,146.33,146.28,5.47541657]
[1750908725056,5.47541657,146.33,146.29,6.83573723]
[1750908726277,5.47541657,146.32,146.29,6.83573723]
[1750908726476,5.47541657,146.33,146.29,6.83573723]
[1750908726651,5.47541657,146.34,146.29,12.3111538]
[1750908726852,5.47541657,146.34,146.3,5.47541657]
[1750908727052,5.47541657,146.35,146.3,5.47541657]
[1750908727293,5.47541657,146.37,146.33,5.47541657]
[1750908727592,5.51541657,146.38,146.33,5.47541657]
[1750908729174,5.47541657,146.37,146.33,12.30884225]
[1750908729769,5.47541657,146.37,146.33,6.83342568]
[1750908729951,0.04,146.38,146.33,6.83342568]
[1750908730155,5.47541657,146.37,146.33,6.83342568]
[1750908730859,5.47541657,146.36,146.33,6.83342568]
[1750908731064,0.04,146.38,146.33,6.83342568]
[1750908731261,5.47541657,146.36,146.33,6.83342568]
[1750908731986,5.47541657,146.37,146.33,6.83342568]
[1750908732168,5.47541657,146.35,146.32,29.06]
[1750908732484,5.47541657,146.34,146.32,29.06]
[1750908733479,5.47541657,146.33,146.32,29.06]
[1750908733683,5.47541657,146.33,146.26,34.2553]
[1750908733887,5.47541657,146.31,146.27,35.8766719]
[1750908734887,5.47541657,146.31,146.27,41.35208847]
[1750908735985,5.47541657,146.31,146.27,35.8766719]
[1750908736291,9.17007884,146.31,146.27,35.8766719]
[1750908737708,9.17007884,146.32,146.27,45.04675074]
[1750908738499,9.17007884,146.32,146.27,16.00675074]
[1750908738704,9.17007884,146.31,146.28,29.04]
[1750908739474,9.17007884,146.3,146.28,29.04]
[1750908740892,9.17007884,146.29,146.23,9.17007884]
[1750908741098,9.17007884,146.28,146.24,29.04]
[1750908741996,9.17007884,146.27,146.24,29.04]
[1750908742180,9.17007884,146.26,146.23,35.87854202]
[1750908743584,9.17007884,146.28,146.23,35.87854202]
[1750908743900,9.17007884,146.27,146.23,35.87854202]
[1750908745482,26.0,146.29,146.23,35.87854202]
[1750908745713,9.17007884,146.28,146.24,9.17007884]
[1750908746281,9.17007884,146.28,146.23,45.04862086]
[1750908748114,26.0,146.29,146.23,45.04862086]
[1750908748276,9.17007884,146.28,146.23,45.04862086]
[1750908749089,9.17007884,146.27,146.23,35.87854202]
[1750908750209,9.17007884,146.26,146.23,35.87854202]
[1750908751805,9.17007884,146.26,146.23,6.83854202]
[1750908752007,9.17007884,146.26,146.23,35.87854202]
[1750908753602,9.17007884,146.25,146.23,6.83854202]
[1750908753804,9.17007884,146.24,146.22,35.87889305]
[1750908754306,9.17007884,146.23,146.21,0.02]
[1750908754509,9.17007884,146.24,146.21,6.85941933]
[1750908754815,9.17007884,146.25,146.21,16.02949817]
[1750908754997,9.17007884,146.26,146.21,16.02949817]
[1750908755199,9.17007884,146.25,146.21,33.12819182]
[1750908755790,9.17007884,146.25,146.21,0.02]
[1750908755791,35.17007884,146.22,146.21,0.02]
[1750908756306,42.01108784,146.22,146.21,0.02]
[1750908757014,35.17007884,146.22,146.21,0.02]
[1750908758309,31.51019428,146.22,146.21,0.02]
[1750908763912,31.79451742,146.22,146.21,0.02]
[1750908764121,58.20562785,146.22,146.21,0.02]
[1750908765008,65.04463756,146.22,146.21,0.02]
[1750908765211,19.07613357,146.21,146.19,0.02]
[1750908765405,31.79451742,146.2,146.19,0.02]
[1750908766324,50.58632785,146.2,146.19,0.02]
[1750908766816,24.58632785,146.2,146.19,0.02]
[1750908767922,31.51019428,146.2,146.19,0.02]
[1750908768835,31.51019428,146.2,146.15,5.03019428]
[1750908769023,5.51019428,146.19,146.15,5.03019428]
[1750908769408,5.51019428,146.19,146.14,0.14216157]
[1750908769609,5.51019428,146.19,146.14,5.65235585]
[1750908770128,5.51019428,146.19,146.15,6.84228532]
[1750908770636,5.51019428,146.19,146.15,12.3524796]
[1750908770818,5.51019428,146.19,146.15,6.84228532]
[1750908771019,5.51019428,146.19,146.15,12.3524796]
[1750908771718,26.0,146.2,146.15,12.3524796]
[1750908772031,5.51019428,146.19,146.15,12.3524796]
[1750908773527,31.51019428,146.2,146.15,12.3524796]
[1750908774033,26.0,146.2,146.15,12.3524796]
[1750908774225,31.51019428,146.2,146.15,12.3524796]
[1750908774529,5.51019428,146.19,146.15,12.3524796]
[1750908774710,26.0,146.2,146.15,12.3524796]
[1750908774913,5.51019428,146.19,146.15,12.3524796]
[1750908775330,26.0,146.2,146.15,12.3524796]
[1750908775629,5.51019428,146.22,146.16,0.14216157]
[1750908775834,26.0,146.23,146.16,0.14216157]
[1750908775835,5.51019428,146.21,146.17,5.51019428]
[1750908776331,5.51019428,146.2,146.15,58.4781929]
[1750908776834,26.0,146.23,146.15,52.96799862]
[1750908777132,26.0,146.23,146.15,35.86228532]
[1750908777319,5.51019428,146.19,146.15,41.3724796]
[1750908777831,26.0,146.23,146.15,41.3724796]
[1750908778028,5.51019428,146.19,146.15,41.3724796]
[1750908778333,5.51019428,146.19,146.15,35.86228532]
[1750908778532,5.51019428,146.18,146.15,35.86228532]
[1750908778733,5.51019428,146.17,146.15,29.02]
[1750908778937,5.51019428,146.16,146.12,6.84356035]
[1750908779135,34.1411,146.2,146.12,6.84356035]
[1750908779136,5.51019428,146.15,146.12,6.84356035]
[1750908779925,5.51019428,146.16,146.12,6.84356035]
[1750908780329,5.51019428,146.16,146.12,12.35375463]
[1750908780738,0.28432314,146.19,146.12,12.35375463]
[1750908780920,5.51019428,146.16,146.12,12.35375463]
[1750908781447,34.1411,146.2,146.12,6.84356035]
[1750908781631,5.51019428,146.16,146.12,12.35375463]
[1750908783025,34.1411,146.2,146.14,5.51019428]
[1750908783225,31.51019428,146.2,146.15,5.51019428]
[1750908783723,5.51019428,146.19,146.15,5.51019428]
[1750908784140,26.0,146.2,146.14,5.51019428]
[1750908784334,5.51019428,146.19,146.14,5.51019428]
[1750908784741,5.51019428,146.18,146.14,12.35250118]
[1750908784925,5.51019428,146.18,146.14,6.8423069]
[1750908785239,26.0,146.2,146.14,6.8423069]
[1750908785442,26.0,146.19,146.13,12.35333069]
[1750908785637,5.51019428,146.18,146.13,12.35333069]
[1750908786325,5.51019428,146.17,146.13,12.35333069]
[1750908786529,5.51019428,146.17,146.13,6.84313641]
[1750908786826,26.0,146.19,146.13,12.35333069]
[1750908787348,5.51019428,146.17,146.13,12.35333069]
[1750908787721,5.51019428,146.18,146.13,12.35333069]
[1750908789251,5.51019428,146.18,146.13,6.84313641]
[1750908789438,5.51019428,146.18,146.13,12.35333069]
[1750908790152,5.51019428,146.18,146.13,41.37333069]
[1750908790453,5.51019428,146.18,146.13,35.86313641]
[1750908790756,5.51019428,146.18,146.13,41.37333069]
[1750908791839,5.51019428,146.17,146.13,41.37333069]
[1750908792037,5.51019428,146.16,146.13,29.02]
[1750908792237,5.51019428,146.14,146.11,29.0]
[1750908793157,5.51019428,146.14,146.11,35.84404793]
[1750908793334,5.51019428,146.14,146.1,6.8445755]
[1750908793657,5.51019428,146.14,146.1,35.8445755]
[1750908794436,0.28432314,146.18,146.1,41.35476978]
[1750908794638,33.5759,146.19,146.11,18.79181043]
[1750908794835,5.51019428,146.17,146.12,5.51019428]